bitfinex/quotes_BTCUSD_20251104
["timestamp","ask_amount","ask_price","bid_price","bid_amount"]
[1762262849789,0.00214545,103670.0,103660.0,0.261314]
[1762262850701,0.00214545,103670.0,103660.0,0.26179798]
[1762262850889,0.00214545,103670.0,103660.0,0.20279243]
[1762262851101,0.00214545,103670.0,103660.0,0.25250798]
[1762262851762,0.00014545,103670.0,103660.0,0.26379798]
[1762262851964,0.00014545,103670.0,103660.0,0.25650798]
[1762262852163,0.76452818,103670.0,103660.0,0.25450798]
[1762262852340,0.77679818,103670.0,103660.0,0.25550798]
[1762262852746,0.20533529,103670.0,103660.0,0.26050798]
[1762262852950,0.77679818,103670.0,103660.0,0.26050798]
[1762262853168,0.79288818,103670.0,103660.0,0.25121798]
[1762262853371,0.79288818,103670.0,103660.0,0.05827953]
[1762262853924,0.85899818,103670.0,103660.0,0.00856398]
[1762262854620,0.85899818,103670.0,103660.0,0.00556398]
[1762262854854,0.85899818,103670.0,103660.0,0.00056398]
[1762262855099,0.85899818,103670.0,103660.0,0.00456398]
[1762262855309,0.28753529,103670.0,103660.0,0.00256398]
[1762262855546,0.04338545,103670.0,103660.0,0.21208243]
[1762262855719,0.07174545,103670.0,103660.0,0.01085398]
[1762262855925,0.26466529,103670.0,103660.0,0.24421798]
[1762262856058,0.81575818,103670.0,103660.0,0.05127953]
[1762262856413,0.99026347,103670.0,103660.0,0.19450243]
[1762262856647,0.77447363,103670.0,103660.0,0.19450243]
[1762262856878,0.05565545,103670.0,103660.0,0.20379243]
[1762262857151,0.00014545,103670.0,103660.0,0.20379243]
[1762262857354,0.04338545,103670.0,103660.0,0.20379243]
[1762262857767,0.04338545,103670.0,103660.0,0.25350798]
[1762262858179,0.04342545,103670.0,103660.0,0.26279798]
[1762262859183,0.23634529,103670.0,103660.0,0.25350798]
[1762262859389,0.95134347,103670.0,103660.0,0.06056953]
[1762262859627,0.99026347,103670.0,103660.0,0.00156398]
[1762262860875,0.01241545,103670.0,103660.0,0.20379243]
[1762262860996,0.00014545,103670.0,103660.0,0.26279798]
[1762262861197,0.04338545,103670.0,103660.0,0.26279798]
[1762262861640,0.04338545,103670.0,103660.0,0.20379243]
[1762262861816,0.89579347,103670.0,103660.0,0.25350798]
[1762262862182,0.93899017,103670.0,103660.0,0.25350798]
[1762262862370,0.19302199,103670.0,103660.0,0.25350798]
[1762262862573,0.74607033,103670.0,103660.0,0.25350798]
[1762262862719,0.04334215,103670.0,103660.0,0.25350798]
[1762262863709,0.24853199,103670.0,103660.0,0.25350798]
[1762262863837,0.05561215,103670.0,103660.0,0.25350798]
[1762262864039,0.04334215,103670.0,103660.0,0.25350798]
[1762262864282,0.05561215,103670.0,103660.0,0.25350798]
[1762262864686,0.04334215,103670.0,103660.0,0.26279798]
[1762262865486,0.00010215,103670.0,103660.0,0.26279798]
[1762262865890,0.00010215,103670.0,103660.0,0.30603798]
[1762262867108,0.00010215,103670.0,103660.0,0.31003798]
[1762262867562,0.00010215,103670.0,103660.0,0.31303798]
[1762262869992,0.00010215,103670.0,103660.0,0.26332243]
[1762262870219,0.00010215,103670.0,103660.0,0.31303798]
[1762262872710,0.00010215,103670.0,103660.0,0.30374798]
[1762262872919,0.00010215,103670.0,103660.0,0.31303798]
[1762262873672,0.00010215,103670.0,103660.0,0.30374798]
[1762262874127,0.00010215,103670.0,103660.0,0.25403243]
[1762262874330,0.00010215,103670.0,103660.0,0.30374798]
[1762262875148,0.00010215,103670.0,103660.0,0.31303798]
[1762262875540,0.00010215,103670.0,103660.0,0.30374798]
[1762262875936,0.00010215,103670.0,103660.0,0.00856398]
[1762262875937,0.79779033,103670.0,103660.0,0.00856398]
[1762262876135,0.02834215,103670.0,103660.0,0.00856398]
[1762262876335,0.07231395,103670.0,103660.0,0.26050798]
[1762262876563,0.04334215,103670.0,103660.0,0.26050798]
[1762262876727,0.00010215,103670.0,103660.0,0.26050798]
[1762262876939,0.00010215,103670.0,103660.0,0.25550798]
[1762262877307,0.00010215,103670.0,103660.0,0.26479798]
[1762262877485,0.00010215,103670.0,103660.0,0.25750798]
[1762262877890,0.00010215,103670.0,103660.0,0.25550798]
[1762262878311,0.00010215,103670.0,103660.0,0.26050798]
[1762262879918,0.24478199,103670.0,103660.0,0.00856398]
[1762262880185,0.24478199,103670.0,103660.0,0.20150243]
[1762262880689,0.22126199,103670.0,103660.0,0.19300243]
[1762262880888,0.24478199,103670.0,103660.0,0.19293845]
[1762262881276,0.24478199,103670.0,103660.0,0.19693845]
[1762262881443,0.02834215,103670.0,103660.0,0.19693845]
[1762262881857,0.22126199,103670.0,103660.0,0.19693845]
[1762262882075,0.24478199,103670.0,103660.0,0.05371555]
[1762262882247,0.24478199,103670.0,103660.0,0.004]
[1762262883506,1.04298924,103670.0,103660.0,0.004]
[1762262883866,1.09261014,103670.0,103660.0,0.004]
[1762262884425,1.11052129,103670.0,103630.0,0.26164879]
[1762262884599,0.02824,103640.0,103630.0,0.26164879]
[1762262884980,0.02824,103640.0,103630.0,0.25664879]
[1762262885181,0.22812709,103650.0,103640.0,0.24269123]
[1762262885593,0.24471709,103650.0,103630.0,0.35212786]
[1762262885826,0.01659,103640.0,103630.0,0.35212786]
[1762262886030,0.27136709,103650.0,103640.0,0.19297568]
[1762262886229,0.27136709,103650.0,103630.0,0.25664879]
[1762262886451,0.04011,103640.0,103630.0,0.25235879]
[1762262886657,0.27136709,103650.0,103630.0,0.20264324]
[1762262886880,0.27136709,103650.0,103630.0,0.25335879]
[1762262887275,0.28158244,103650.0,103630.0,0.25235879]
[1762262887583,0.01659,103640.0,103630.0,0.25435879]
[1762262887806,0.01659,103640.0,103630.0,0.25535879]
[1762262888012,0.27136709,103650.0,103640.0,0.19297568]
[1762262888215,0.24780706,103650.0,103640.0,0.00429]
[1762262888342,0.24780706,103650.0,103630.0,0.35083786]
[1762262888343,0.28791706,103650.0,103630.0,0.35083786]
[1762262888563,0.24780706,103650.0,103640.0,0.19726568]
[1762262888870,0.05485,103650.0,103640.0,0.19297568]
[1762262889498,0.26439706,103650.0,103640.0,0.19297568]
[1762262890067,0.28791706,103650.0,103640.0,0.19297568]
[1762262890307,0.28791706,103650.0,103640.0,0.19397568]
[1762262890689,0.05485,103650.0,103640.0,0.19826568]
[1762262890890,0.28791706,103650.0,103640.0,0.001]
[1762262891277,0.28791706,103650.0,103640.0,0.002]
[1762262891678,0.24471706,103650.0,103640.0,0.002]
[1762262891880,0.28791706,103650.0,103640.0,0.002]
[1762262892915,0.24780706,103650.0,103640.0,0.24898123]
[1762262893145,0.28791706,103650.0,103640.0,0.19497568]
[1762262893332,0.09496,103650.0,103640.0,0.19497568]
[1762262893534,0.28787706,103650.0,103640.0,0.19497568]
[1762262893742,0.09492,103650.0,103640.0,0.19497568]
[1762262893905,0.26435706,103650.0,103640.0,0.19497568]
[1762262894308,0.09492,103650.0,103640.0,0.19497568]
[1762262894542,0.28787706,103650.0,103640.0,0.002]
[1762262895112,0.24471706,103650.0,103640.0,0.002]
[1762262895250,0.28791706,103650.0,103640.0,0.002]
[1762262895672,0.28791706,103650.0,103640.0,0.00233637]
[1762262896060,0.28791706,103650.0,103640.0,0.19579618]
[1762262896393,0.28791706,103650.0,103640.0,0.0028205]
[1762262896394,1.08612431,103650.0,103640.0,0.0028205]
[1762262896724,0.94744524,103650.0,103640.0,0.0028205]
[1762262897037,0.08074179,103650.0,103640.0,0.19579618]
[1762262897163,0.31689885,103650.0,103640.0,0.0028205]
[1762262897361,0.24627506,103660.0,103640.0,0.07512361]
[1762262897591,0.27096506,103660.0,103640.0,0.24831518]
[1762262897994,0.02823,103650.0,103640.0,0.24831518]
[1762262898202,0.05292,103650.0,103640.0,0.24402518]
[1762262898530,0.02823,103650.0,103640.0,0.24402518]
[1762262898734,0.02723,103650.0,103640.0,0.24402518]
[1762262899093,0.05192,103650.0,103640.0,0.24402518]
[1762262899296,0.24487706,103650.0,103640.0,0.24402518]
[1762262899613,0.24487706,103650.0,103640.0,0.24302518]
[1762262899791,0.05192,103650.0,103640.0,0.24302518]
[1762262900174,0.02723,103650.0,103640.0,0.24302518]
[1762262900377,0.02823,103650.0,103640.0,0.24302518]
[1762262900680,0.01405,103650.0,103640.0,0.24731518]
[1762262900903,0.002,103650.0,103640.0,0.24731518]
[1762262901471,0.002,103650.0,103640.0,0.20188963]
[1762262901674,0.002,103650.0,103640.0,0.34708425]
[1762262902361,0.002,103650.0,103640.0,0.39028425]
[1762262902564,0.001,103650.0,103640.0,0.39028425]
[1762262902975,0.01239945,103670.0,103660.0,0.19293845]
[1762262903231,0.08032945,103670.0,103660.0,0.19293845]
[1762262903402,0.02757945,103670.0,103660.0,0.19722845]
[1762262903603,0.04394945,103670.0,103660.0,0.246944]
[1762262903985,0.00074945,103670.0,103660.0,0.24579218]
[1762262904185,0.00174945,103670.0,103660.0,0.24579218]
[1762262904594,0.00274945,103670.0,103660.0,0.24579218]
[1762262904778,0.00274945,103670.0,103660.0,0.2436775]
[1762262905890,0.00274945,103670.0,103660.0,0.19825195]
[1762262906085,0.00274945,103670.0,103660.0,0.34225889]
[1762262906714,0.00274945,103670.0,103660.0,0.34188994]
[1762262907179,0.00274945,103670.0,103660.0,0.33759994]
[1762262907760,0.00274945,103670.0,103660.0,0.38079994]
[1762262908034,0.00274945,103670.0,103660.0,0.38508994]
[1762262908824,0.00174945,103670.0,103660.0,0.38508994]
[1762262909182,0.00174945,103670.0,103660.0,0.38808994]
[1762262909323,0.00074945,103670.0,103660.0,0.38808994]
[1762262909786,0.00074945,103670.0,103660.0,0.39008994]
[1762262910893,0.00074945,103670.0,103660.0,0.39042633]
[1762262911829,0.00074945,103670.0,103660.0,0.38613633]
[1762262913304,0.01585945,103670.0,103660.0,0.38184633]
[1762262913909,0.00074945,103670.0,103660.0,0.38613633]
[1762262914443,0.01585945,103670.0,103660.0,0.28636726]
[1762262914642,0.00074945,103670.0,103660.0,0.29065726]
[1762262915666,0.00074945,103670.0,103660.0,0.28052886]
[1762262916370,0.00074945,103670.0,103660.0,0.37600793]
[1762262917015,0.00074945,103670.0,103660.0,0.38029793]
[1762262917236,0.00074945,103670.0,103660.0,0.33058238]
[1762262917442,0.00074945,103670.0,103660.0,0.37702617]
[1762262917636,0.00074945,103670.0,103660.0,0.57702617]
[1762262918301,0.00074945,103670.0,103660.0,0.57402617]
[1762262918719,0.04034061,103710.0,103700.0,0.19286403]
[1762262918862,0.01152615,103710.0,103700.0,0.24291597]
[1762262919302,0.02760363,103710.0,103700.0,0.24291597]
[1762262919500,0.05143363,103710.0,103700.0,0.24291597]
[1762262919961,0.00111363,103710.0,103700.0,0.24720597]
[1762262920162,0.00111363,103710.0,103700.0,0.24720596]
[1762262920357,0.81678705,103710.0,103700.0,0.00033638]
[1762262920744,0.81678705,103710.0,103700.0,0.19320041]
[1762262921131,0.62494162,103710.0,103700.0,0.19320041]
[1762262921369,0.62694162,103710.0,103690.0,0.24688616]
[1762262921534,0.61046799,103700.0,103690.0,0.19717061]
[1762262921736,0.61119367,103700.0,103690.0,0.19717061]
[1762262922661,0.03966568,103700.0,103690.0,0.19717061]
[1762262922844,0.01583568,103700.0,103690.0,0.24688616]
[1762262923253,0.03966568,103700.0,103690.0,0.24688616]
[1762262923624,0.00072568,103700.0,103690.0,0.25117616]
[1762262923970,0.00072568,103700.0,103690.0,0.25546616]
[1762262924924,0.00072568,103700.0,103690.0,0.25117616]
[1762262924925,0.40283202,103700.0,103690.0,0.25117616]
[1762262925484,0.00072568,103700.0,103690.0,0.25546616]
[1762262926254,0.00072568,103700.0,103690.0,0.25117616]
[1762262926464,0.40283202,103700.0,103690.0,0.25117616]
[1762262926601,0.40283202,103700.0,103690.0,0.24777616]
[1762262927211,0.00072568,103700.0,103690.0,0.24777616]
[1762262927411,0.40283202,103700.0,103690.0,0.24777616]
[1762262928785,0.41884202,103700.0,103690.0,0.24348616]
[1762262928920,0.88827836,103700.0,103680.0,0.25222903]
[1762262929124,0.01183,103690.0,103680.0,0.29534903]
[1762262929367,0.00048383,103690.0,103680.0,0.29623903]
[1762262929568,0.00048383,103690.0,103680.0,0.29712903]
[1762262930331,0.24342654,103710.0,103690.0,0.24259818]
[1762262930923,0.01625187,103700.0,103690.0,0.24259818]
[1762262931134,0.2333259,103700.0,103690.0,0.19288263]
[1762262931343,0.04046187,103700.0,103690.0,0.23919818]
[1762262931737,0.41835821,103700.0,103690.0,0.23919818]
[1762262932222,0.41835821,103700.0,103690.0,0.24008818]
[1762262932460,0.00024187,103700.0,103690.0,0.24008818]
[1762262932866,0.41835821,103700.0,103690.0,0.23919818]
[1762262933196,0.01625187,103700.0,103690.0,0.23919818]
[1762262933836,0.41835821,103700.0,103690.0,0.23919818]
[1762262934307,0.61122224,103700.0,103690.0,0.23919818]
[1762262934506,0.63543224,103700.0,103690.0,0.23919818]
[1762262934770,0.44256821,103700.0,103690.0,0.23919818]
[1762262934971,0.43967525,103700.0,103690.0,0.24273818]
[1762262935533,0.41546525,103700.0,103690.0,0.24273818]
[1762262936145,0.41546525,103700.0,103690.0,0.24627818]
[1762262936339,0.01335891,103700.0,103690.0,0.24627818]
[1762262936739,0.03618615,103710.0,103700.0,0.19286403]
[1762262936941,0.01197615,103710.0,103700.0,0.19286403]
[1762262937181,0.43009249,103710.0,103700.0,0.24257958]
[1762262937507,0.45454432,103710.0,103700.0,0.24257958]
[1762262937931,0.45654432,103710.0,103700.0,0.24257958]
[1762262939668,0.45754432,103710.0,103700.0,0.24257958]
[1762262940074,0.03122798,103710.0,103700.0,0.24257958]
[1762262940308,0.00338798,103710.0,103700.0,0.24965958]
[1762262940506,0.00338798,103710.0,103700.0,0.34513865]
[1762262941194,0.01183,103750.0,103740.0,0.19278966]
[1762262941398,0.41408247,103750.0,103740.0,0.19278966]
[1762262941608,0.43009247,103750.0,103740.0,0.19632966]
[1762262941814,0.00014613,103750.0,103740.0,0.24604521]
[1762262942429,0.00014613,103750.0,103740.0,0.24958521]
[1762262943571,0.00014613,103750.0,103740.0,0.25358521]
[1762262944219,0.00014613,103750.0,103740.0,0.16464151]
[1762262944427,0.04036613,103750.0,103740.0,0.24650521]
[1762262944858,0.04036613,103750.0,103740.0,0.28966521]
[1762262945518,0.04036613,103750.0,103740.0,0.28926521]
[1762262945938,0.80374629,103750.0,103740.0,0.19678966]
[1762262946148,0.89922536,103750.0,103740.0,0.004]
[1762262946392,0.89922536,103750.0,103740.0,0.00060267]
[1762262946606,0.80374629,103750.0,103740.0,0.19339233]
[1762262946813,0.00111305,103750.0,103740.0,0.19693233]
[1762262947012,0.00111305,103750.0,103740.0,0.24624788]
[1762262947223,0.00111305,103750.0,103740.0,0.24918521]
[1762262947427,0.00111305,103750.0,103740.0,0.24664521]
[1762262947685,0.00111305,103750.0,103740.0,0.24324521]
[1762262947946,0.00111305,103750.0,103740.0,0.24224521]
[1762262948371,0.00111305,103750.0,103740.0,0.24524521]
[1762262948578,0.00111305,103750.0,103740.0,0.24184788]
[1762262949458,0.04133305,103750.0,103740.0,0.18659233]
[1762262949658,0.04133305,103750.0,103740.0,0.23590788]
[1762262949791,0.23410413,103750.0,103740.0,0.23590788]
[1762262950157,0.01712305,103750.0,103740.0,0.23251055]
[1762262950572,0.04133305,103750.0,103740.0,0.23251055]
[1762262950782,0.01712305,103750.0,103740.0,0.22911055]
[1762262951214,0.00111305,103750.0,103740.0,0.23619055]
[1762262951628,0.00111305,103750.0,103740.0,0.23359966]
[1762262951990,0.00111305,103750.0,103740.0,0.23005966]
[1762262953757,0.00111305,103750.0,103740.0,0.22651966]
[1762262953758,0.23410413,103750.0,103740.0,0.22651966]
[1762262954016,0.04133305,103750.0,103740.0,0.22651966]
[1762262954235,0.20989413,103750.0,103740.0,0.22651966]
[1762262954668,0.01712305,103750.0,103740.0,0.22651966]
[1762262955103,0.01423149,103750.0,103740.0,0.22651966]
[1762262955800,0.20700257,103750.0,103740.0,0.22651966]
[1762262956977,0.01423149,103750.0,103740.0,0.22651966]
[1762262957585,0.23095257,103750.0,103740.0,0.22651966]
[1762262958511,0.20700257,103750.0,103740.0,0.22253966]
[1762262958721,0.22865373,103750.0,103740.0,0.22253966]
[1762262959154,0.79926281,103750.0,103740.0,0.24610521]
[1762262959357,0.22865373,103750.0,103740.0,0.19678966]
[1762262960112,0.22865373,103750.0,103740.0,0.004]
[1762262960325,0.89474188,103750.0,103740.0,0.004]
[1762262961317,0.89474188,103750.0,103740.0,0.001]
[1762262961861,0.19278966,103740.0,103730.0,0.19280752]
[1762262962060,0.80329874,103740.0,103730.0,0.19280752]
[1762262962319,0.80329874,103740.0,103730.0,0.19369606]
[1762262962975,0.01595,103740.0,103730.0,0.19777606]
[1762262963165,0.01595,103740.0,103730.0,0.24709161]
[1762262963390,0.21872108,103750.0,103740.0,0.19278966]
[1762262963605,0.02595,103750.0,103740.0,0.19278966]
[1762262963816,0.23267108,103750.0,103740.0,0.19278966]
[1762262964029,0.0399,103750.0,103740.0,0.1926921]
[1762262964257,0.20872108,103750.0,103740.0,0.1926921]
[1762262964471,0.23267108,103750.0,103740.0,0.1926921]
[1762262965293,0.81962868,103760.0,103750.0,0.19277108]
[1762262965793,0.83557868,103760.0,103750.0,0.19277108]
[1762262966007,0.2649696,103760.0,103750.0,0.19277108]
[1762262966240,0.2649696,103760.0,103740.0,0.24200765]
[1762262966475,0.2649696,103760.0,103750.0,0.19277108]
[1762262966685,0.83657868,103760.0,103750.0,0.19277108]
[1762262966899,0.06357854,103760.0,103750.0,0.19277108]
[1762262967123,0.04162854,103760.0,103750.0,0.24208663]
[1762262967336,0.06557854,103760.0,103750.0,0.24208663]
[1762262967570,0.03142165,103760.0,103750.0,0.24208663]
[1762262968005,0.03042165,103760.0,103750.0,0.24208663]
[1762262968227,0.03042165,103760.0,103750.0,0.24970663]
[1762262968228,0.01447165,103760.0,103750.0,0.24970663]
[1762262968444,0.01247165,103760.0,103750.0,0.24970663]
[1762262969528,0.22117415,103760.0,103750.0,0.24208663]
[1762262969753,0.05237165,103760.0,103750.0,0.24208663]
[1762262969979,0.01247165,103760.0,103750.0,0.24970663]
[1762262970183,0.02842165,103760.0,103750.0,0.24208663]
[1762262970651,0.02842165,103760.0,103750.0,0.24408663]
[1762262971084,0.05260165,103760.0,103750.0,0.24408663]
[1762262971260,0.02842165,103760.0,103750.0,0.24508663]
[1762262971658,0.02842165,103760.0,103750.0,0.24531085]
[1762262973199,0.01247165,103760.0,103750.0,0.25293085]
[1762262973437,0.00024165,103760.0,103750.0,0.25293085]
[1762262973630,0.00024165,103760.0,103750.0,0.26254085]
[1762262973893,0.11534707,103770.0,103760.0,0.1927525]
[1762262974079,0.12163911,103770.0,103760.0,0.24206805]
[1762262974296,0.29285701,103770.0,103760.0,0.24206805]
[1762262974538,0.31616948,103770.0,103760.0,0.24206805]
[1762262974711,0.12866066,103770.0,103760.0,0.24206805]
[1762262974948,0.3182245,103770.0,103760.0,0.24206805]
[1762262975156,0.31763964,103770.0,103760.0,0.24206805]
[1762262975367,0.08761615,103770.0,103760.0,0.24206805]
[1762262975597,0.07039609,103770.0,103760.0,0.25167805]
[1762262975804,0.05769305,103770.0,103760.0,0.25167805]
[1762262976041,0.05526511,103770.0,103760.0,0.25167805]
[1762262976260,0.05438614,103770.0,103760.0,0.35676712]
[1762262976472,0.05380112,103770.0,103760.0,0.39976712]
[1762262976647,0.05079063,103770.0,103760.0,0.39976712]
[1762262976868,0.04989753,103770.0,103760.0,0.39976712]
[1762262977256,0.04932595,103770.0,103760.0,0.39976712]
[1762262977450,0.04932595,103770.0,103760.0,0.40376712]
[1762262977451,0.04845136,103770.0,103760.0,0.40376712]
[1762262977657,0.04757313,103770.0,103760.0,0.40376712]
[1762262977863,0.04455401,103770.0,103760.0,0.35445157]
[1762262978256,0.04397143,103770.0,103760.0,0.40376712]
[1762262978473,0.04397143,103770.0,103760.0,0.40576712]
[1762262978474,0.04309962,103770.0,103760.0,0.40576712]
[1762262978707,0.04224558,103770.0,103760.0,0.26728805]
[1762262978931,0.0941024,103770.0,103760.0,0.1987525]
[1762262979137,0.06722585,103770.0,103760.0,0.24806805]
[1762262979353,0.06663478,103770.0,103760.0,0.24806805]
[1762262979537,0.06575141,103770.0,103760.0,0.24806805]
[1762262979791,0.06512307,103770.0,103760.0,0.24406805]
[1762262980004,0.06426259,103770.0,103760.0,0.24406805]
[1762262980219,0.25670805,103770.0,103760.0,0.24606805]
[1762262980434,0.27755818,103770.0,103760.0,0.24406805]
[1762262980662,0.27669065,103770.0,103760.0,0.002]
[1762262980912,0.27581047,103770.0,103760.0,0.1957525]
[1762262981122,0.27524241,103770.0,103760.0,0.1957525]
[1762262981335,0.2746585,103770.0,103760.0,0.1957525]
[1762262981548,0.27379537,103770.0,103760.0,0.1957525]
[1762262981766,0.27078169,103770.0,103760.0,0.003]
[1762262981997,0.27022543,103770.0,103760.0,0.003]
[1762262982222,0.26994901,103770.0,103760.0,0.003]
[1762262982436,0.2696469,103770.0,103760.0,0.003]
[1762262982840,0.2696469,103770.0,103760.0,0.1957525]
[1762262983078,0.26948748,103770.0,103760.0,0.1957525]
[1762262984131,0.26948748,103770.0,103760.0,0.003]
[1762262984604,0.36496655,103770.0,103760.0,0.003]
[1762262985425,0.36496655,103770.0,103760.0,0.001]
[1762262985782,0.36496655,103770.0,103760.0,0.1937525]
[1762262986039,0.36496655,103770.0,103760.0,0.001]
[1762262986608,0.1927525,103760.0,103750.0,0.24295352]
[1762262986807,0.2321825,103760.0,103750.0,0.25560274]
[1762262987003,0.2321825,103760.0,103750.0,0.25560273]
[1762262987661,0.2321825,103760.0,103750.0,0.25560271]
[1762262988007,0.2321825,103760.0,103750.0,0.2566027]
[1762262988221,0.2316825,103760.0,103750.0,0.2566027]
[1762262988846,0.03943,103760.0,103750.0,0.2566027]
[1762262989053,0.03943,103760.0,103750.0,0.25660269]
[1762262989255,0.03943,103760.0,103750.0,0.25860269]
[1762262989456,0.03943,103760.0,103750.0,0.25860268]
[1762262989630,0.2321825,103760.0,103750.0,0.25860266]
[1762262989855,0.2321825,103760.0,103750.0,0.25860265]
[1762262990168,0.03943,103760.0,103750.0,0.25864264]
[1762262990379,0.03943,103760.0,103750.0,0.25864263]
[1762262990581,0.03943,103760.0,103750.0,0.25864262]
[1762262990778,0.2321825,103760.0,103750.0,0.25864261]
[1762262991007,0.2321825,103760.0,103750.0,0.2586426]
[1762262991178,0.2321825,103760.0,103750.0,0.25864259]
[1762262991589,0.2321825,103760.0,103750.0,0.25864258]
[1762262991779,0.2321825,103760.0,103750.0,0.25864257]
[1762262991985,0.2321825,103760.0,103750.0,0.06587548]
[1762262992222,0.2321825,103760.0,103750.0,0.01655993]
[1762262992432,0.2321825,103760.0,103750.0,0.01655992]
[1762262993191,0.2321825,103760.0,103750.0,0.209331]
[1762262993396,0.2321825,103760.0,103750.0,0.20933098]
[1762262993619,0.2321825,103760.0,103750.0,0.20933096]
[1762262993819,0.2321825,103760.0,103750.0,0.20933095]
[1762262994020,0.2321825,103760.0,103750.0,0.20933094]
[1762262994206,0.2321825,103760.0,103750.0,0.20933093]
[1762262994405,0.2321825,103760.0,103750.0,0.20933092]
[1762262994650,0.2321825,103760.0,103750.0,0.20933091]
[1762262994852,0.2321825,103760.0,103750.0,0.2093309]
[1762262995259,0.2321825,103760.0,103750.0,0.20933089]
[1762262995411,0.2321825,103760.0,103750.0,0.20933087]
[1762262995781,0.03943,103760.0,103750.0,0.20933086]
[1762262996083,0.03943,103760.0,103750.0,0.20933085]
[1762262996265,0.01635,103760.0,103750.0,0.20933084]
[1762262996466,0.25204984,103770.0,103760.0,0.1927525]
[1762262996666,0.34752891,103770.0,103760.0,0.01287303]
[1762262996845,0.36387891,103770.0,103760.0,0.01287303]
[1762262997046,1.06495249,103770.0,103760.0,0.01287303]
[1762262997266,1.06495249,103770.0,103760.0,0.01287302]
[1762262997809,1.08560783,103770.0,103760.0,0.01287302]
[1762262998412,0.78631949,103770.0,103760.0,0.01287302]
[1762262998547,0.78631949,103770.0,103760.0,0.01287301]
[1762262998988,0.78831949,103770.0,103760.0,0.01287301]
[1762262999179,0.78831949,103770.0,103760.0,0.01291301]
[1762262999885,0.78931949,103770.0,103760.0,0.01291301]
[1762263000330,1.19110473,103770.0,103760.0,0.01291301]
[1762263001325,1.19110473,103770.0,103760.0,0.012913]
[1762263005135,1.19110473,103770.0,103760.0,0.01291299]
[1762263005554,1.22005291,103770.0,103760.0,0.01291299]
[1762263005973,4.62550409,103770.0,103760.0,2.99e-06]
[1762263006177,0.1927525,103760.0,103750.0,0.00068667]
[1762263006402,1.08328162,103760.0,103750.0,0.00068667]
[1762263006611,0.19280596,103740.0,103720.0,0.20250733]
[1762263006815,0.19280596,103740.0,103730.0,0.19280825]
[1762263007008,0.05071,103730.0,103720.0,0.20265346]
[1762263007955,0.45249524,103730.0,103720.0,0.20265346]
[1762263008318,0.64530349,103730.0,103720.0,0.00018613]
[1762263008440,0.64530349,103730.0,103720.0,0.00318613]
[1762263008650,0.64530349,103730.0,103720.0,0.19601297]
[1762263008850,0.42941524,103730.0,103720.0,0.19601297]
[1762263009051,0.45249524,103730.0,103720.0,0.19601297]
[1762263009273,0.02763,103730.0,103720.0,0.19601297]
[1762263009483,0.01017207,103740.0,103730.0,0.2421238]
[1762263009730,0.73406331,103750.0,103740.0,0.19278966]
[1762263009955,0.74406497,103750.0,103740.0,0.19278966]
[1762263010150,0.76041497,103750.0,103740.0,0.19278966]
[1762263010520,0.55797597,103750.0,103740.0,0.19278966]
[1762263010865,0.01128,103750.0,103740.0,0.25240521]
[1762263011602,1.750088,103760.0,103750.0,0.19277108]
[1762263011603,1.9428405,103760.0,103750.0,0.19277108]
[1762263011803,2.16822324,103760.0,103750.0,0.19277108]
[1762263012009,2.16822324,103760.0,103750.0,0.19754108]
[1762263012478,1.74400464,103760.0,103750.0,0.19754108]
[1762263012631,1.72765464,103760.0,103750.0,0.25715663]
[1762263013202,1.72765464,103760.0,103750.0,0.26745663]
[1762263014426,1.72865464,103760.0,103750.0,0.26745663]
[1762263015313,1.72765464,103760.0,103750.0,0.26745663]
[1762263015829,1.72765464,103760.0,103750.0,0.27045663]
[1762263017222,1.72765464,103760.0,103750.0,0.26015663]
[1762263017481,1.72765464,103760.0,103750.0,0.21084108]
[1762263017698,1.74312464,103760.0,103750.0,0.29273663]
[1762263018038,1.72765464,103760.0,103750.0,0.30303663]
[1762263018242,1.72765464,103760.0,103750.0,0.31333663]
[1762263019032,1.72765464,103760.0,103750.0,0.30303663]
[1762263019208,1.76705464,103760.0,103750.0,0.24508663]
[1762263019370,1.72765464,103760.0,103750.0,0.30303663]
[1762263020000,1.72765464,103760.0,103750.0,0.26402108]
[1762263020201,1.72765464,103760.0,103750.0,0.31333663]
[1762263020800,0.00064664,103760.0,103750.0,0.31333663]
[1762263022199,0.00064664,103760.0,103750.0,0.3219481]
[1762263022608,0.01849992,103770.0,103760.0,0.1927525]
[1762263022883,0.01849992,103770.0,103760.0,0.26266805]
[1762263023034,0.01849992,103770.0,103760.0,0.27266804]
[1762263023211,1e-08,103770.0,103760.0,0.27266804]
[1762263023407,1e-08,103770.0,103760.0,0.28266803]
[1762263023599,1e-08,103770.0,103760.0,0.3781471]
[1762263023799,1e-08,103770.0,103760.0,0.36814711]
[1762263024056,0.00100001,103770.0,103760.0,0.3781471]
[1762263024215,0.00600001,103770.0,103760.0,0.3781471]
[1762263024417,1e-08,103770.0,103760.0,0.3781471]
[1762263024622,0.0004,103780.0,103770.0,0.19273393]
[1762263024829,0.0004,103780.0,103770.0,0.30552948]
[1762263025229,0.00064158,103780.0,103770.0,0.30552948]
[1762263025584,0.00064158,103780.0,103770.0,0.50552948]
[1762263025786,0.00064158,103780.0,103770.0,0.51752947]
[1762263026210,0.0004,103800.0,103790.0,0.19269679]
[1762263026431,0.00088729,103800.0,103790.0,0.39620141]
[1762263026632,0.00137035,103800.0,103790.0,0.40650141]
[1762263026795,0.00137035,103800.0,103790.0,0.31102234]
[1762263027428,0.00345035,103820.0,103810.0,0.19265966]
[1762263027590,0.00345035,103820.0,103810.0,0.20048966]
[1762263027591,0.00359644,103820.0,103810.0,0.20048966]
[1762263027948,0.00407936,103820.0,103810.0,0.11740966]
[1762263028093,0.00407936,103820.0,103810.0,0.16672521]
[1762263028466,0.00062901,103820.0,103810.0,0.18599117]
[1762263028715,0.00062901,103820.0,103810.0,0.24704117]
[1762263028963,0.00062901,103820.0,103810.0,0.22777521]
[1762263029542,0.00062901,103820.0,103810.0,0.22877521]
[1762263030337,0.00062901,103820.0,103810.0,0.22777521]
[1762263030755,0.00062901,103820.0,103810.0,0.18145966]
[1762263030926,0.00062901,103820.0,103810.0,0.25004117]
[1762263031310,0.00062901,103820.0,103810.0,0.23077521]
[1762263032784,0.00062901,103820.0,103810.0,0.23477521]
[1762263034522,0.00062901,103820.0,103810.0,0.43477521]
[1762263034931,0.00062901,103820.0,103810.0,0.23477521]
[1762263040480,0.00062901,103820.0,103810.0,0.43477521]
[1762263040686,0.00062901,103820.0,103810.0,0.39185521]
[1762263040892,0.00062901,103820.0,103810.0,0.43473521]
[1762263041094,0.00062901,103820.0,103810.0,0.44334447]
[1762263041295,0.00062901,103820.0,103810.0,0.44334446]
[1762263041625,0.00062901,103820.0,103810.0,0.44334443]
[1762263041843,0.00062901,103820.0,103810.0,0.44334441]
[1762263042041,0.00062901,103820.0,103810.0,0.20046439]
[1762263042242,0.00062901,103820.0,103810.0,0.24334436]
[1762263042404,0.00062901,103820.0,103810.0,0.24334434]
[1762263042796,0.00062901,103820.0,103810.0,0.24334433]